bitfinex-derivatives/quotes_SOLF0:USTF0_20250731
["timestamp","ask_amount","ask_price","bid_price","bid_amount"]
[1753980667582,3.16,178.87,178.83,3.19]
[1753980667982,3.16,178.85,178.83,3.19]
[1753980668979,3.16,178.84,178.83,3.19]
[1753980669478,6.42785362,178.88,178.77,6.42785362]
[1753980669682,3.16,178.87,178.8,3.19]
[1753980670180,3.16,178.86,178.84,3.19]
[1753980670583,3.16,178.86,178.74,6.15924382]
[1753980670584,3.16,178.86,178.85,3.19]
[1753980670773,3.16,178.87,178.85,3.19]
[1753980671374,3.16,178.87,178.86,3.19]
[1753980671576,3.16,178.87,178.84,3.19]
[1753980671774,3.16,178.87,178.85,3.19]
[1753980671974,5.5909,178.88,178.85,3.19]
[1753980672175,120.78619003,178.95,178.79,3.19]
[1753980672176,3.16,178.87,178.79,3.19]
[1753980672786,3.16,178.83,178.81,8.7827]
[1753980673384,3.16,178.82,178.81,8.7827]
[1753980673684,3.16,178.81,178.79,3.19]
[1753980674080,3.16,178.8,178.79,3.19]
[1753980674280,3.16,178.8,178.76,6.42785362]
[1753980674483,3.16,178.8,178.77,5.5939]
[1753980674790,3.16,178.84,178.76,6.42785362]
[1753980675084,3.16,178.84,178.77,3.19]
[1753980675777,11.1799,178.91,178.81,3.19]
[1753980675778,3.16,178.9,178.81,3.19]
[1753980676185,6.42785362,178.91,178.8,6.42785362]
[1753980676380,252.92704028,178.93,178.8,9.61785362]
[1753980676381,9.58785362,178.89,178.8,9.61785362]
[1753980676582,3.16,178.88,178.8,9.61785362]
[1753980676985,5.5915,178.86,178.82,5.5925]
[1753980677183,5.5915,178.86,178.83,3.19]
[1753980677184,3.16,178.85,178.83,3.19]
[1753980677689,3.16,178.85,178.84,3.19]
[1753980678086,3.16,178.85,178.82,8.7825]
[1753980678283,3.16,178.85,178.8,6.42785362]
[1753980678284,6.42785362,178.89,178.8,6.42785362]
[1753980678592,3.16,178.82,178.8,3.19]
[1753980678986,3.16,178.81,178.8,3.19]
[1753980679182,6.42785362,178.87,178.8,8.7832]
[1753980679387,3.16,178.86,178.8,3.19]
[1753980679691,6.42785362,178.89,178.81,5.5927]
[1753980679897,3.16,178.88,178.82,3.19]
[1753980680192,3.16,178.83,178.82,3.19]
[1753980680491,3.16,178.83,178.81,5.5928]
[1753980680690,3.16,178.83,178.81,8.7828]
[1753980680995,3.16,178.83,178.82,3.19]
[1753980681188,3.16,178.88,178.82,3.19]
[1753980681792,5.5911,178.87,178.83,5.5921]
[1753980682089,3.16,178.85,178.84,3.19]
[1753980682284,3.16,178.85,178.8,6.42785362]
[1753980682489,147.92704028,178.93,178.81,3.19]
[1753980682490,3.16,178.89,178.81,3.19]
[1753980682690,6.42785362,178.88,178.81,3.19]
[1753980682891,5.5919,178.85,178.81,8.7827]
[1753980683093,3.16,178.84,178.82,3.19]
[1753980684295,8.7514,178.86,178.83,3.19]
[1753980684494,3.16,178.86,178.8,3.19]
[1753980684896,5.5912,178.87,178.83,5.5921]
[1753980685097,8.7512,178.87,178.8,3.19]
[1753980685298,8.7512,178.87,178.81,6.42785362]
[1753980685498,3.16,178.85,178.83,3.19]
[1753980685700,3.16,178.85,178.84,3.19]
[1753980685895,3.16,178.87,178.84,5.5917]
[1753980686200,147.92704028,178.93,178.87,3.19]
[1753980686397,3.16,178.89,178.87,3.19]
[1753980686796,147.92704028,178.93,178.88,3.19]
[1753980687001,147.92704028,178.93,178.85,6.42785362]
[1753980687296,3.16,178.92,178.87,3.19]
[1753980688700,3.16,178.92,178.85,3.25]
[1753980689302,3.16,178.92,178.81,9.67785362]
[1753980689303,3.26,178.91,178.81,9.67785362]
[1753980689499,3.26,178.91,178.82,3.25]
[1753980689905,5.5912,178.87,178.83,5.5921]
[1753980690202,3.26,178.87,178.81,3.25]
[1753980690602,6.42785362,178.86,178.81,3.25]
[1753980690906,5.5937,178.79,178.73,6.42785362]
[1753980691096,3.26,178.78,178.74,3.25]
[1753980691302,6.42785362,178.82,178.75,3.25]
[1753980691499,3.26,178.78,178.75,8.8446]
[1753980691700,3.26,178.78,178.76,3.25]
[1753980692005,3.26,178.78,178.77,3.25]
[1753980693001,3.26,178.78,178.71,6.42785362]
[1753980693002,8.8533,178.8,178.78,3.25]
[1753980693403,3.26,178.8,178.78,8.8438]
[1753980693600,3.26,178.8,178.79,3.25]
[1753980693909,3.26,178.79,178.77,3.25]
[1753980695199,109.60879003,178.89,178.75,3.25]
[1753980695200,3.26,178.81,178.75,3.25]
[1753980695806,5.5933,178.8,178.76,5.5942]
[1753980696004,3.26,178.79,178.77,3.25]
[1753980696601,3.26,178.79,178.78,3.25]
[1753980696807,3.26,178.81,178.74,3.25]
[1753980697309,3.26,178.81,178.75,6.42785362]
[1753980697509,3.26,178.81,178.76,3.25]
[1753980697804,3.26,178.81,178.75,6.42785362]
[1753980698009,3.26,178.81,178.75,3.25]
[1753980698204,3.26,178.76,178.7,3.25]
[1753980698408,3.26,178.73,178.7,5.5963]
[1753980698706,3.26,178.73,178.66,3.25]
[1753980698906,3.26,178.7,178.68,3.25]
[1753980699107,3.26,178.7,178.69,3.25]
[1753980699310,6.42785362,178.74,178.69,3.25]
[1753980699506,3.26,178.71,178.69,3.25]
[1753980700605,3.26,178.71,178.64,6.42785362]
[1753980700812,8.8555,178.73,178.65,3.25]
[1753980701012,3.26,178.72,178.64,6.42785362]
[1753980701215,3.26,178.72,178.65,3.25]
[1753980701411,6.42785362,178.77,178.66,6.42785362]
[1753980701614,3.26,178.74,178.67,3.25]
[1753980702006,8.8553,178.74,178.7,5.5961]
[1753980702207,3.26,178.73,178.71,3.25]
[1753980702518,8.8547,178.76,178.67,3.25]
[1753980702709,3.26,178.76,178.67,3.25]
[1753980703210,3.26,178.75,178.67,3.25]
[1753980703515,3.26,178.75,178.69,3.25]
[1753980703707,3.26,178.75,178.68,6.42785362]
[1753980703910,3.26,178.78,178.71,3.25]
[1753980704107,8.8535,178.8,178.75,3.25]
[1753980704304,3.26,178.79,178.75,3.25]
[1753980704610,3.26,178.78,178.76,3.25]
[1753980704812,3.26,178.78,178.76,8.8442]
[1753980706018,3.26,178.78,178.77,5.5941]
[1753980707217,3.26,178.79,178.78,3.25]
[1753980708215,104.98,178.81,178.78,3.25]
[1753980708516,108.24,178.81,178.77,3.25]
[1753980708821,3.26,178.81,178.77,3.25]
[1753980709012,5.5923,178.83,178.76,6.42785362]
[1753980709213,3.26,178.82,178.79,3.25]
[1753980709419,111.42785362,178.87,178.8,5.5932]
[1753980709721,3.96709342,178.86,178.79,3.25]
[1753980709915,3.96709342,178.85,178.79,3.25]
[1753980710112,3.26,178.84,178.79,3.25]
[1753980710719,8.8521,178.84,178.81,5.5928]
[1753980710916,3.26,178.83,178.81,5.5928]
[1753980711123,3.26,178.82,178.81,5.5928]
[1753980711718,3.26,178.82,178.76,6.42785362]
[1753980711924,3.26,178.82,178.77,3.25]
[1753980712222,3.26,178.82,178.78,3.25]
[1753980712423,3.26,178.82,178.79,3.25]
[1753980712720,3.26,178.8,178.79,3.25]
[1753980713223,3.26,178.8,178.79,8.8435]
[1753980714820,3.26,178.8,178.77,5.5939]
[1753980715021,6.42785362,178.85,178.77,3.25]
[1753980715219,3.26,178.78,178.77,3.25]
[1753980715419,3.26,178.78,178.77,8.8441]
[1753980715819,3.26,178.78,178.77,5.5941]
[1753980716016,3.26,178.78,178.77,8.8441]
[1753980716932,3.26,178.77,178.76,5.5943]
[1753980717624,5.594,178.78,178.75,5.5947]
[1753980717824,3.26,178.77,178.73,3.25]
[1753980718026,3.26,178.76,178.72,6.42785362]
[1753980718224,5.594,178.78,178.75,5.5945]
[1753980718420,6.42785362,178.81,178.73,3.15]
[1753980718622,3.16,178.8,178.74,5.595]
[1753980719224,3.16,178.78,178.74,5.595]
[1753980719424,3.16,178.78,178.73,8.7453]
[1753980719621,3.16,178.78,178.73,3.15]
[1753980719821,3.16,178.76,178.73,3.15]
[1753980720030,3.16,178.76,178.73,8.7452]
[1753980720325,3.16,178.78,178.7,6.42785362]
[1753980720517,3.16,178.8,178.76,6.42785362]
[1753980720719,6.42785362,178.87,178.79,3.15]
[1753980720919,3.16,178.81,178.77,3.15]
[1753980721222,3.16,178.8,178.79,5.5932]
[1753980721425,3.16,178.8,178.79,8.7432]
[1753980722425,5.5926,178.82,178.79,8.7432]
[1753980722823,3.16,178.8,178.79,8.7432]
[1753980723026,3.16,178.82,178.81,5.5926]
[1753980723328,3.16,178.82,178.81,8.7426]
[1753980723529,3.16,178.82,178.81,3.15]
[1753980723725,3.16,178.82,178.8,5.593]
[1753980724032,3.16,178.81,178.8,8.743]
[1753980724228,5.5917,178.85,178.81,5.5927]
[1753980724525,3.16,178.83,178.82,3.15]
[1753980725127,3.16,178.84,178.79,3.15]
[1753980725324,3.16,178.84,178.78,6.42785362]
[1753980725632,3.16,178.84,178.8,3.15]
[1753980726119,3.16,178.84,178.81,5.5927]
[1753980726317,8.752,178.84,178.81,5.5927]
[1753980726530,3.16,178.83,178.8,3.15]
[1753980726829,3.16,178.83,178.77,3.15]
[1753980727332,6.42785362,178.87,178.78,6.42785362]
[1753980727529,3.16,178.82,178.8,3.15]
[1753980727731,3.16,178.82,178.81,8.7429]
[1753980727927,5.5918,178.85,178.78,6.42785362]
[1753980728131,3.16,178.83,178.82,3.15]
[1753980729125,3.16,178.83,178.82,8.7426]
[1753980730832,3.16,178.83,178.8,6.42785362]
[1753980730833,3.16,178.86,178.84,8.7418]
[1753980731135,3.16,178.85,178.84,3.15]
[1753980732834,3.16,178.87,178.84,3.15]
[1753980733035,5.5908,178.88,178.84,3.15]
[1753980733337,3.16,178.85,178.84,8.7419]
[1753980734035,3.16,178.89,178.85,3.15]
[1753980734234,3.16,178.89,178.87,3.15]
[1753980734425,3.16,178.89,178.88,3.15]
[1753980734630,3.16,178.89,178.88,8.7405]
[1753980734838,3.16,178.91,178.88,3.15]
[1753980735048,3.16,178.91,178.9,5.5901]
[1753980735245,3.16,178.91,178.9,8.7401]
[1753980735841,3.16,178.91,178.86,3.94052301]
[1753980736047,3.16,178.91,178.87,3.15]
[1753980736249,3.16,178.9,178.88,8.7405]
[1753980736648,3.16,178.9,178.89,3.15]
[1753980737049,147.92704028,178.93,178.87,8.7409]
[1753980737248,3.16,178.88,178.87,8.7409]
[1753980737449,5.5899,178.91,178.87,3.15]
[1753980737651,3.16,178.89,178.88,8.7405]
[1753980737841,3.16,178.92,178.87,6.41820772]
[1753980738046,3.16,178.94,178.89,6.41820772]
[1753980738246,104.92,178.95,178.91,5.5897]
[1753980738445,3.16,178.93,178.92,3.15]
[1753980739253,3.16,178.93,178.92,8.7394]
[1753980740348,3.16,178.93,178.92,3.15]
[1753980741249,3.16,178.93,178.86,3.15]
[1753980741448,3.16,178.93,178.88,3.15]
[1753980741844,3.16,178.93,178.92,3.15]
[1753980742651,3.16,178.93,178.87,6.41820772]
[1753980742852,3.16,178.92,178.91,5.5895]
[1753980743049,3.16,178.92,178.91,8.7395]
[1753980743552,3.16,178.94,178.92,8.7394]
[1753980743748,3.16,178.96,178.91,6.41820772]
[1753980743951,3.16,179.0,178.93,6.41820772]
[1753980744156,8.7472,179.0,178.94,3.15]
[1753980744344,3.16,179.0,178.94,3.15]
[1753980744546,3.16,179.0,178.95,6.41820772]
[1753980744854,146.44021764,179.01,178.99,3.15]
[1753980745053,146.44021764,179.01,179.0,3.15]
[1753980745255,149.60021764,179.01,179.0,3.15]
[1753980745752,146.44021764,179.01,179.0,8.7369]
[1753980746047,146.44021764,179.01,179.0,3.15]
[1753980746246,146.44021764,179.01,178.99,5.5871]
[1753980746450,3.16,179.0,178.99,8.7371]
[1753980747053,149.60021764,179.01,179.0,5.5869]
[1753980747357,149.60021764,179.01,179.0,8.7369]
[1753980748751,3.3,179.04,179.02,3.25]
[1753980749344,108.12,179.06,179.0,3.25]
[1753980750454,104.82,179.06,179.03,5.586]
[1753980750657,3.3,179.05,179.03,8.836]
[1753980750858,3.3,179.05,179.04,3.25]
[1753980751750,3.3,179.07,179.05,3.25]
[1753980751952,3.3,179.06,179.05,3.25]
[1753980752253,3.3,179.06,179.03,3.25]
[1753980752456,3.3,179.05,179.03,3.25]
[1753980752655,3.3,179.04,179.03,3.25]
[1753980753357,3.3,179.04,179.03,8.836]
[1753980753552,3.3,179.07,179.04,3.25]
[1753980753748,3.3,179.05,179.04,3.25]
[1753980754447,3.3,179.06,179.05,3.25]
[1753980755056,3.3,179.06,179.02,3.25]
[1753980755459,3.3,179.06,179.04,5.5855]
[1753980755660,3.3,179.06,179.05,3.25]
[1753980756057,3.3,179.05,179.04,3.25]
[1753980756257,3.3,179.05,179.04,8.8357]
[1753980756853,104.8,179.08,179.06,3.25]
[1753980757257,3.3,179.07,179.06,3.25]
[1753980757457,3.3,179.06,179.02,3.25]
[1753980757652,3.3,179.07,179.02,3.25]
[1753980757855,104.8,179.08,179.02,3.25]
[1753980758059,3.3,179.06,179.02,3.25]
[1753980758561,3.3,179.06,179.05,5.5854]
[1753980758764,3.3,179.06,179.05,8.8354]
[1753980759056,3.3,179.06,178.94,55.1773]
[1753980759262,3.3,179.06,179.01,3.93147358]
[1753980759459,3.3,179.06,179.01,7.18147358]
[1753980759659,3.3,179.07,179.02,3.25]
[1753980759858,3.3,179.06,179.02,3.25]
[1753980760056,3.3,179.07,179.05,5.5851]
[1753980760257,3.3,179.07,179.04,3.25]
[1753980760561,3.3,179.07,178.94,55.1773]
[1753980760562,3.3,179.07,179.02,3.25]
[1753980761061,3.3,179.07,179.0,3.25]
[1753980761361,3.3,179.05,179.0,3.25]
[1753980761557,3.93147358,179.04,178.97,3.93147358]
[1753980761762,3.3,179.03,178.98,3.25]
[1753980761964,3.3,179.03,178.99,3.25]
[1753980762761,3.93147358,179.05,178.98,3.25]
[1753980763266,3.3,179.02,178.98,3.25]
[1753980763456,3.93147358,179.07,178.99,3.93147358]
[1753980763661,3.3,179.06,179.03,5.5859]
[1753980763855,3.3,179.04,179.0,3.25]
[1753980764061,3.3,179.04,178.98,3.25]
[1753980764463,5.5861,179.03,178.98,8.8375]
[1753980764760,3.3,179.02,178.99,3.25]
[1753980765257,3.3,179.04,179.0,8.8369]
[1753980765463,3.3,179.04,179.01,3.25]
[1753980765860,3.3,179.04,179.02,5.5861]
[1753980766056,3.3,179.04,179.03,3.25]
[1753980766464,3.3,179.04,179.03,8.836]
[1753980767263,3.3,179.04,179.03,3.25]
[1753980769361,3.3,179.04,179.0,3.25]
[1753980769563,3.3,179.03,178.97,3.25]
[1753980770060,3.3,179.03,178.99,8.8371]
[1753980770265,3.3,179.03,178.93,44.0]
[1753980770468,3.3,179.02,178.98,3.25]
[1753980770864,3.3,179.01,178.95,3.25]
[1753980771065,3.93147358,179.02,178.95,3.25]
[1753980771066,3.3,178.99,178.95,3.25]
[1753980771468,3.3,178.99,178.95,8.8383]
[1753980771768,3.3,178.99,178.93,3.25]
[1753980771967,3.3,178.99,178.95,5.5883]
[1753980772165,3.3,178.99,178.96,3.25]
[1753980772468,3.3,178.97,178.96,3.25]
[1753980772865,3.93147358,178.98,178.92,3.25]
[1753980773162,3.3,178.97,178.9,215.07241652]
[1753980773368,3.3,178.97,178.91,42.38865014]
[1753980773567,8.8881,178.97,178.93,5.5891]
[1753980773766,3.3,178.96,178.92,3.25]
[1753980773967,3.3,178.95,178.92,3.25]
[1753980774359,3.93147358,178.96,178.92,3.25]
[1753980774573,3.3,178.94,178.93,3.25]
[1753980776058,3.3,178.94,178.91,10.68259]
[1753980776471,3.3,178.95,178.92,3.25]
[1753980777164,3.3,178.94,178.92,3.25]
[1753980777365,3.3,178.93,178.92,3.25]
[1753980777568,5.5883,178.96,178.91,8.34299]
[1753980777569,3.3,178.92,178.91,8.34299]
[1753980778669,3.3,178.92,178.91,5.09299]
[1753980779367,3.3,178.92,178.91,8.27299]
[1753980782865,3.3,178.92,178.91,5.09299]
[1753980784271,3.3,178.92,178.91,8.27299]
[1753980785168,3.3,178.92,178.91,13.86279]
[1753980785567,2.99,178.94,178.92,3.18]
[1753980785766,2.99,178.94,178.93,3.18]
[1753980786667,2.99,178.96,178.93,3.18]
[1753980786866,2.99,178.95,178.92,3.18]
[1753980787073,2.99,178.94,178.93,3.18]
[1753980787571,2.99,178.94,178.91,5.09299]
[1753980788069,2.99,178.93,178.91,5.09299]
[1753980788672,2.99,178.93,178.92,3.18]
[1753980788873,3.93147358,178.96,178.93,3.18]
[1753980789166,2.99,178.94,178.93,3.18]
[1753980791876,2.99,178.93,178.92,3.18]
[1753980792370,2.99,178.93,178.92,8.7694]
[1753980792570,2.99,178.95,178.92,8.7694]
[1753980792870,2.99,178.94,178.93,3.18]
[1753980794571,2.99,178.96,178.92,3.18]
[1753980794767,6.92147358,179.0,178.94,3.18]
[1753980794975,2.99,179.01,178.94,3.18]
[1753980795174,2.99,178.98,178.94,3.18]
[1753980795372,2.99,178.98,178.95,3.18]
[1753980795671,2.99,178.97,178.96,3.18]
[1753980796074,2.99,178.99,178.97,3.18]
[1753980796377,2.99,178.98,178.97,3.18]
[1753980798570,2.99,178.98,178.97,8.7679]
[1753980798783,2.99,179.01,178.99,3.18]
[1753980798972,2.99,179.0,178.99,3.18]
[1753980799171,3.93147358,179.04,178.99,3.18]
[1753980799172,2.99,179.02,178.99,3.18]
[1753980799476,2.99,179.05,179.0,3.18]
[1753980799780,2.99,179.04,179.03,3.18]
[1753980800278,2.99,179.04,179.03,8.766]
[1753980800683,2.99,179.04,179.03,3.18]
[1753980800878,2.99,179.03,179.02,3.18]
[1753980801179,2.99,179.03,179.0,3.18]
[1753980801574,3.93147358,179.06,178.99,3.93147358]
[1753980801772,2.99,179.07,179.01,3.93147358]
[1753980801978,2.99,179.08,179.04,3.18]
[1753980802178,2.99,179.08,179.05,3.18]
[1753980802384,2.99,179.07,179.05,3.18]
[1753980802789,2.99,179.06,179.05,3.18]
[1753980802984,2.99,179.08,179.05,5.5851]
[1753980803283,2.99,179.08,179.07,3.18]
[1753980803878,2.99,179.08,179.04,3.18]
[1753980804579,2.99,179.08,179.06,3.18]
[1753980804773,2.99,179.08,179.03,3.93147358]
[1753980805078,2.99,179.08,179.07,3.18]
[1753980805380,152.93048411,179.12,179.07,3.93147358]
[1753980805682,152.93048411,179.12,179.08,3.18]
[1753980805876,149.94048411,179.12,179.09,5.5841]
[1753980806081,149.94048411,179.12,179.1,3.18]
[1753980806082,2.99,179.11,179.1,3.18]
[1753980806974,4.62879003,179.2,179.09,3.93147358]
[1753980807172,6.92147358,179.18,179.1,3.18]
[1753980807376,2.99,179.17,179.01,34.08822783]
[1753980807573,11.1632,179.18,179.01,34.08822783]
[1753980807574,2.99,179.1,179.05,3.93147358]
[1753980807976,5.5837,179.11,179.05,9.51657358]
[1753980808287,3.28,179.1,179.05,3.93147358]
[1753980808478,3.28,179.13,179.09,3.93147358]
[1753980808781,4.25176845,179.19,179.11,3.93147358]
[1753980809083,3.28,179.18,179.13,3.93147358]
[1753980809579,3.93147358,179.17,179.08,2.38]
[1753980809775,3.28,179.16,179.08,2.38]
[1753980810088,3.93147358,179.17,179.09,3.93147358]
[1753980810288,3.28,179.16,179.1,2.38]
[1753980810779,3.28,179.16,179.09,3.93147358]
[1753980810982,3.28,179.14,179.07,3.93147358]
[1753980811786,3.28,179.14,179.07,6.31147358]
[1753980811988,3.28,179.14,179.08,2.38]
[1753980812486,3.93147358,179.17,179.1,2.38]
[1753980812687,3.28,179.16,179.1,2.38]
[1753980813184,3.28,179.16,179.09,3.93147358]
[1753980813583,5.5832,179.13,179.09,6.31147358]
[1753980813788,3.28,179.12,179.1,2.38]
[1753980814584,3.28,179.11,179.1,2.38]
[1753980814784,5.5833,179.12,179.1,2.38]
[1753980814986,5.5833,179.12,179.09,3.93147358]
[1753980815184,8.8633,179.12,179.11,2.38]
[1753980815389,8.8633,179.12,179.1,2.38]
[1753980816090,3.28,179.1,179.09,3.93147358]
[1753980817190,3.28,179.11,179.09,6.31147358]
[1753980817389,3.28,179.13,179.1,2.38]
[1753980817587,3.28,179.12,179.1,2.38]
[1753980818092,5.5826,179.14,179.1,2.38]
[1753980818384,3.28,179.13,179.12,2.38]
[1753980818988,3.28,179.13,179.1,2.38]
[1753980819191,3.28,179.13,179.11,2.38]
[1753980819390,8.8631,179.13,179.11,2.38]
[1753980819686,3.28,179.15,179.12,2.38]
[1753980819891,3.28,179.15,179.01,82.01970141]
[1753980819892,3.93147358,179.21,179.14,2.38]
[1753980820189,3.28,179.17,179.15,6.31147358]
[1753980820390,4.25167348,179.22,179.15,3.93147358]
[1753980820591,3.28,179.21,179.15,3.93147358]
[1753980821293,3.28,179.21,179.13,3.93147358]
[1753980821888,5.5818,179.17,179.13,9.51427358]
[1753980822092,3.28,179.15,179.13,11.89427358]
[1753980822288,3.28,179.17,179.14,2.38]
[1753980822494,3.28,179.21,179.16,2.38]
[1753980822894,3.28,179.18,179.16,2.38]
[1753980824200,3.28,179.16,179.06,2.38]
[1753980824493,3.28,179.16,179.09,6.31147358]
[1753980824694,0.9715921,179.24,179.15,3.93147358]
[1753980824695,3.28,179.23,179.15,3.93147358]
[1753980824897,3.28,179.22,179.14,3.93147358]
[1753980826096,3.28,179.22,179.15,2.38]
[1753980826296,3.28,179.22,179.17,3.93147358]
[1753980826494,5.5809,179.2,179.17,3.93147358]
[1753980826799,3.28,179.19,179.17,3.93147358]
[1753980828301,8.861,179.19,179.17,3.93147358]
[1753980828601,3.28,179.18,179.17,3.93147358]
[1753980829196,3.28,179.18,179.15,6.31147358]
[1753980829405,3.28,179.22,179.15,6.31147358]
[1753980829602,5.5811,179.19,179.15,6.31147358]
[1753980829799,3.28,179.17,179.15,6.31147358]
[1753980830305,3.28,179.16,179.15,3.93147358]
[1753980831596,3.28,179.16,179.13,11.89417358]
[1753980831800,3.28,179.16,179.03,55.1715]
[1753980831801,3.28,179.18,179.11,6.31147358]
[1753980832303,5.5825,179.15,179.11,11.89487358]
[1753980832604,3.28,179.13,179.11,11.89487358]
[1753980832802,3.93147358,179.19,179.11,3.93147358]
[1753980833003,3.28,179.18,179.11,3.93147358]
[1753980833606,5.5826,179.14,179.11,3.93147358]
[1753980833799,3.28,179.12,179.11,6.31147358]
[1753980834004,3.28,179.12,179.11,2.38]
[1753980834706,107.64,179.2,179.12,2.38]
[1753980834906,3.28,179.19,179.13,3.93147358]
[1753980835096,5.582,179.17,179.13,9.51417358]
[1753980835300,3.93147358,179.21,179.03,55.1715]
[1753980835301,3.28,179.18,179.16,2.38]
[1753980835503,3.28,179.18,179.17,3.93147358]
[1753980835807,109.26306568,179.24,179.17,6.31147358]
[1753980836006,3.28,179.2,179.17,6.31147358]
[1753980836308,3.28,179.19,179.17,6.31147358]
[1753980837299,3.28,179.19,179.17,11.89297358]
[1753980837808,3.28,179.25,179.18,2.38]
[1753980838014,3.28,179.22,179.17,3.93147358]
[1753980838198,3.28,179.22,179.15,6.31147358]
[1753980838505,3.21,179.2,179.13,2.38]
[1753980839403,5.5813,179.18,179.14,7.9623]
[1753980839610,3.21,179.16,179.14,7.9623]
[1753980840110,3.21,179.16,179.15,5.5823]
[1753980840603,3.21,179.16,179.15,7.9623]
[1753980840808,3.21,179.19,179.16,5.5818]
[1753980841002,3.93147358,179.21,179.16,2.38]
[1753980841003,3.21,179.18,179.16,2.38]
[1753980841200,3.21,179.24,179.18,2.38]
[1753980841510,3.21,179.27,179.22,3.93147358]
[1753980841701,3.98725121,179.26,179.22,3.93147358]
[1753980841901,3.21,179.24,179.22,3.93147358]
[1753980842099,3.21,179.23,179.22,6.31147358]
[1753980842412,3.21,179.23,179.22,9.51157358]
[1753980842708,6.29478168,179.31,179.22,9.51157358]
[1753980842709,3.21,179.28,179.22,6.31147358]
[1753980843008,3.21,179.26,179.25,9.51057358]
[1753980843599,3.21,179.26,179.25,3.93147358]
[1753980843809,3.21,179.26,179.2,3.93147358]
[1753980844003,3.21,179.26,179.2,6.31147358]
[1753980844206,3.21,179.3,179.24,3.93147358]
[1753980844407,3.99195534,179.29,179.24,6.31147358]
[1753980844611,3.21,179.26,179.25,5.5792]
[1753980845407,3.21,179.26,179.24,9.51087358]
[1753980846211,109.20260475,179.32,179.25,5.5791]
[1753980846403,5.5779,179.29,179.24,3.93147358]
[1753980846804,109.20260475,179.32,179.24,3.93147358]
[1753980846805,3.21,179.28,179.24,3.93147358]
[1753980847008,5.5785,179.27,179.24,3.93147358]
[1753980847207,109.20260475,179.32,179.25,5.5791]
[1753980847408,3.21,179.29,179.26,6.31147358]
[1753980847614,3.21,179.29,179.27,2.38]
[1753980847808,3.21,179.29,179.27,7.9583]
[1753980848214,3.21,179.29,179.27,2.38]
[1753980848414,3.21,179.29,179.28,5.5782]
[1753980849015,3.21,179.27,179.26,3.93147358]
[1753980849620,3.21,179.27,179.24,3.93147358]
[1753980850212,3.21,179.27,179.24,9.51067358]
[1753980850414,3.21,179.26,179.24,3.93147358]
[1753980850712,3.21,179.25,179.24,11.89097358]